Cogmind - Beta 16 @@@ ROGUE MODE // 2026.01.07 @ 22:06:04 Player: Tom Fryers Result: Destroyed self with Mini Grenade Launcher Performance ------------- Evolutions (0) 0 Regions Visited (3) 600 Robots Destroyed (28) 140 Value Destroyed (818) 818 Prototype IDs (0) 0 Alien Tech Used (0) 0 Bonus (-272) -272 TOTAL SCORE: 1286 Bonus ------- Friendly Fire -272 Cogmind --------- Core Integrity 0/250 Matter 131/300 Energy 250/250 System Corruption 0% Temperature Cool (0) Movement Treading (240) Ox1 Location -10/Subcaves Parts ------- > --- POWER (1) -------- Ion Engine > --- PROPULSION (2) --- Improved Treads Improved Treads > --- UTILITY (2) ------ Huge Storage Unit Targeting Computer > --- WEAPON (2) ------- Mini Grenade Launcher Mini Grenade Launcher > --- INVENTORY (25) --- Light Ion Engine Improved Treads Carbon-fiber Leg Signal Interpreter Terrain Scanner ECM Suite Core Shielding Light Armor Plating Medium Armor Plating Medium Armor Plating Scrap Shield Scrap Shield Beamcaster Subdweller Beam Cannon Light Assault Rifle Subdweller Machine Gun Rocket Launcher Peak State ------------ > --- POWER ------------ Ion Engine > --- PROPULSION ------- Improved Treads Improved Treads > --- UTILITY ---------- Huge Storage Unit Subdweller Optics > --- WEAPON ----------- Mini Grenade Launcher Mini Grenade Launcher > --- INVENTORY -------- Light Ion Engine Improved Treads Carbon-fiber Leg Signal Interpreter Terrain Scanner Targeting Computer ECM Suite Core Shielding Light Armor Plating Medium Armor Plating Medium Armor Plating Scrap Shield Scrap Shield Beamcaster Subdweller Beam Cannon Light Assault Rifle Subdweller Machine Gun Rocket Launcher Scrap Shield Fragment Scrap Shield Fragment [Rating: 16] Favorites ----------- Power Light Nuclear Core Engine Ion Engine Power Core Light Nuclear Core Propulsion Improved Treads Treads Improved Treads Leg Aluminum Leg Utility Huge Storage Unit Device Sensor Array Storage Huge Storage Unit Processor Targeting Computer Protection Medium Armor Plating Weapon Mini Grenade Launcher Energy Gun EM Pulse Gun Ballistic Gun Light Assault Rifle Launcher Mini Grenade Launcher Build | -11 -10 -10 -10 ------- Run | Yrd Mat Min Sub Slots Evolved . | . . . . Power . | . . . . Propulsion . | . . . . Utility . | . . . . Weapon . | . . . . Parts Attached 20 | 7 8 1 4 Power 3 | 1 2 . . Engine 2 | 1 1 . . Core 1 | . 1 . . Reactor . | . . . . Propulsion 6 | 3 2 . 1 Treads 4 | 1 2 . 1 Leg 2 | 2 . . . Wheel . | . . . . Hover . | . . . . Flight . | . . . . Utility 6 | 1 2 1 2 Device 2 | . . 1 1 Storage 2 | 1 1 . . Processor 1 | . . . 1 Hackware . | . . . . Protection 1 | . 1 . . Artifact . | . . . . Weapon 5 | 2 2 . 1 Energy Gun 1 | 1 . . . Energy Cannon . | . . . . Ballistic Gun 1 | 1 . . . Ballistic Cannon . | . . . . Launcher 3 | . 2 . 1 Special Weapon . | . . . . Impact Weapon . | . . . . Slashing Weapon . | . . . . Piercing Weapon . | . . . . Special Melee Weapon . | . . . . Unidentified Prototypes . | . . . . Parts Lost 5 | . 1 . 4 Power 1 | . . . 1 Propulsion 1 | . . . 1 Utility 2 | . 1 . 1 Weapon 1 | . . . 1 Highest Loss Streak 3 | . 1 . 3 To Critical Strikes . | . . . . Average Backups 14 | 4 8 14 17 Power 1 | . 1 2 1 Propulsion 2 | 2 2 2 1 Utility 7 | . 2 7 9 Weapon 3 | . 1 2 4 Tool/Special . | . . . . Unused Backups 21 | . 5 . 16 Power 1 | . . . 1 Propulsion 5 | . 3 . 2 Utility 9 | . . . 9 Weapon 6 | . 2 . 4 Tool/Special . | . . . . Average Slot Usage (%) 97 | . 95 100 95 Engine 4 | . 4 . 9 Core 9 | . 9 14 4 Treads 26 | . 21 28 28 Leg 1 | . 6 . . Device 9 | . . 14 8 Storage 14 | . 14 14 14 Protection 1 | . 10 . . Launcher 26 | . 18 28 28 Peak Build Rating 16 | 6 15 15 16 Average Rating 14 | 3 12 14 14 On Entrance 8 | . 6 13 15 Avg Prop Armor Cover (%) 19 | 19 . . . Naked Turns . | . . . . Heaviest Build 94 | 11 94 88 89 Greatest Support 46 | 20 46 46 46 Greatest Overweight (x) 4 | . 4 1 1 Average Overweight (x) . | . . 1 1 Largest Inventory Capacity 25 | 8 25 25 25 Average Capacity 23 | 6 17 25 25 Most Carried 23 | 7 10 15 23 Average Carried 14 | 4 8 14 19 Final Capacity 25 | 8 25 25 25 Final Carried 19 | 6 10 15 19 Class Distribution -------------------- 100% | Mutant Dominant Class ---------------- Mutant | -10/Materials Mutant | -10/Mines Mutant | -10/Subcaves Resources | -11 -10 -10 -10 ----------- Run | Yrd Mat Min Sub Matter Collected 615 | 183 214 87 131 Remotely . | . . . . Salvage Created 638 | . 333 16 289 Parts 42 | . 17 6 19 Haulers Intercepted . | . . . . Recyclers Shooed . | . . . . Parts Field Recycled . | . . . . Retrieved Matter . | . . . . Parts Self-Destructed 5 | . . . 5 Prevented . | . . . . Parts Restored . | . . . . Kills | -11 -10 -10 -10 ------- Run | Yrd Mat Min Sub Combat Hostiles Destroyed 24 | . 10 3 11 Guns 3 | . 3 . . AOE 21 | . 7 3 11 Classes Destroyed 5 | . 4 . 1 Recycler 1 | . 1 . . Watcher 1 | . 1 . . Swarmer 5 | . 2 3 . Grunt 11 | . 8 . 3 Subdweller 9 | . . . 9 Thug 1 | . . . 1 Best Kill Streak 4 | . 3 3 4 Combat Bots Only 4 | . 3 3 4 Max Kills in Single Turn 3 | . 2 3 3 Gunslinging . | . . . . Exploded 3 | . 2 3 3 Melee . | . . . . Uniques/NPCs Destroyed . | . . . . Combat | -11 -10 -10 -10 -------- Run | Yrd Mat Min Sub Hostile Shots Fired 59 | . 28 3 28 Missed 17 | . 9 1 7 Hits 42 | . 19 2 21 Projectile 42 | . 19 2 21 AOE 2 | . . . 2 Critical Strikes 1 | . . 1 . Damage Taken 981 | . 268 14 699 Core 253 | . 28 . 225 Absorbed by Shields . | . . . . Core Remaining (%) 100 | 100 . . . Volleys Fired 29 | . 15 1 13 Largest 2 | . 2 2 2 Hottest 60 | . 60 60 60 Shots Fired 57 | . 30 2 25 Gun 18 | . 18 . . Cannon . | . . . . Launcher 39 | . 12 2 25 Special . | . . . . Kinetic 9 | . 9 . . Thermal . | . . . . Explosive 39 | . 12 2 25 Electromagnetic 9 | . 9 . . Robot Hit Streak 6 | . 3 4 6 Robot Miss Streak 3 | . 3 . 1 Penetration Max . | . . . . Secondary Targets . | . . . . Shots Hit Robots 28 | . 16 1 11 Core Hits 60 | . 21 3 36 Critical Kills . | . . . . Critical Parts Destroyed . | . . . . Critical Strikes . | . . . . Melee Attacks . | . . . . Impact . | . . . . Slashing . | . . . . Piercing . | . . . . Sneak Attacks . | . . . . Combat Hostiles . | . . . . Follow-up Attacks . | . . . . Damage Inflicted 2887 | . 769 240 1878 Guns 124 | . 124 . . Cannons . | . . . . Explosions 2763 | . 645 240 1878 Melee . | . . . . Ramming . | . . . . Kinetic 28 | . 28 . . Thermal 143 | . 104 39 . Explosive 2620 | . 541 201 1878 Electromagnetic 96 | . 96 . . Impact . | . . . . Slashing . | . . . . Piercing . | . . . . Highest Corruption . | . . . . Average Corruption . | . . . . Corruption Purged . | . . . . Corruption Blocked . | . . . . Overload Shots . | . . . . Overflow Damage 76 | . 16 7 53 Projectiles . | . . . . Explosions 76 | . 16 7 53 Melee . | . . . . Knockbacks . | . . . . Impact . | . . . . Kinetic . | . . . . Secondary . | . . . . Self-Inflicted Damage 267 | . 78 . 189 Shots 11 | . 3 . 8 Rammed . | . . . . Targets Rammed . | . . . . Kicked . | . . . . Crushed . | . . . . Highest Temperature 67 | . 67 6 . Average Temperature 19 | . 20 4 . Received Heat Transfer 156 | . 66 . 90 Siege Activations . | . . . . Martial Activations . | . . . . Shielding Activations . | . . . . Robots Disrupted . | . . . . Combat Hostiles . | . . . . Robots Corrupted . | . . . . Combat Hostiles . | . . . . Parts Fried . | . . . . Impact Corruptions . | . . . . Robots Melted . | . . . . Combat Hostiles . | . . . . Parts Melted . | . . . . Heat Transferred 200 | . 150 50 . Parts Sabotaged . | . . . . Parts Stolen . | . . . . Parts Stripped . | . . . . Power Chain Reactions 1 | . 1 . . Alert | -11 -10 -10 -10 ------- Run | Yrd Mat Min Sub Maximum Alert Level . | . . . . Low Security (%) 100 | 100 100 100 . Level 1 . | . . . . Level 2 . | . . . . Level 3 . | . . . . Level 4 . | . . . . Level 5 . | . . . . High Security . | . . . . Max Security . | . . . . Peak Influence 160 | . 160 118 . Initial 55 | . . 55 . Average 30 | . 82 13 . Influence Increases 530 | . 354 118 58 Destroy 0b10 Robot/C 300 | . 200 60 40 Destroy 0b10 Robot/NC 10 | . 10 . . Destroy Leader 62 | . 42 10 10 Allied During Kill 19 | . . 11 8 Successful Hack 8 | . 8 . . Disable Machine 30 | . 15 15 . Destroy Structure 101 | . 79 22 . Influence Decreases 530 | . 212 176 142 Entered New Map 131 | . . 87 44 Time Decay 389 | . 202 89 98 Lost Part 10 | . 10 . . Squads Dispatched 2 | . 2 . . Investigation 1 | . 1 . . Extermination . | . . . . Reinforcement 1 | . 1 . . Assault . | . . . . Garrison . | . . . . Intercept . | . . . . Searches Triggered . | . . . . Construction Impeded . | . . . . Haulers Reinforced . | . . . . Active Scanning Responses . | . . . . Cargo Convoy Interrupts . | . . . . Stealth | -11 -10 -10 -10 --------- Run | Yrd Mat Min Sub Distress Signals 2 | . 2 . . Communications Jammed . | . . . . Distress Signals . | . . . . Times Spotted 34 | . 14 3 17 Peak Tracking Total 5 | . 3 3 5 Tactical Retreats . | . . . . Traps | -11 -10 -10 -10 ------- Run | Yrd Mat Min Sub Traps Triggered . | . . . . Indirectly . | . . . . Trap Hack Attempts . | . . . . Triggered . | . . . . Disarmed . | . . . . Reprogrammed . | . . . . Reused . | . . . . Traps Extracted . | . . . . Installed . | . . . . Triggered . | . . . . Machines | -11 -10 -10 -10 ---------- Run | Yrd Mat Min Sub Machines Disabled 3 | . 2 1 . Max in Single Turn 1 | . 1 1 . Machines Repaired . | . . . . Machines Dismantled . | . . . . Machines Sabotaged . | . . . . Overloaded Fab Kills . | . . . . Hacking | -11 -10 -10 -10 --------- Run | Yrd Mat Min Sub Machines Accessed 2 | . 2 . . Terminals 1 | . 1 . . Fabricators . | . . . . Repair Stations . | . . . . Recycling Units 1 | . 1 . . Scanalyzers . | . . . . Garrison Access . | . . . . Total Hacks 6 | . 6 . . Successful 4 | . 4 . . Failed 2 | . 2 . . Catastrophic . | . . . . Database Lockouts . | . . . . Manual . | . . . . Terminals 4 | . 4 . . Fabricators . | . . . . Repair Stations . | . . . . Recycling Units 2 | . 2 . . Scanalyzers . | . . . . Garrison Access . | . . . . Terminal Hacks 3 | . 3 . . Level Access Points 1 | . 1 . . Emergency Access Points 1 | . 1 . . Zone Layout 1 | . 1 . . Fabricator Hacks . | . . . . Repair Station Hacks . | . . . . Recycling Unit Hacks 1 | . 1 . . Retrieve Components 1 | . 1 . . Scanalyzer . | . . . . Garrison Access Hacks . | . . . . Unauthorized Hacks . | . . . . Terminals . | . . . . Fabricators . | . . . . Repair Stations . | . . . . Recycling Units . | . . . . Scanalyzers . | . . . . Garrison Access . | . . . . Data Cores Recovered . | . . . . Used . | . . . . Hacking Detections 2 | . 2 . . Full Trace Events 1 | . 1 . . Feedback Events . | . . . . Feedback Blocked . | . . . . Robot Schematics Acquired . | . . . . Robots Built . | . . . . Authchips . | . . . . Time . | . . . . Total Robot Build Rating . | . . . . Part Schematics Acquired . | . . . . Parts Built . | . . . . Authchips . | . . . . Time . | . . . . Total Part Build Rating . | . . . . Part Studies Acquired . | . . . . Parts Repaired . | . . . . Time . | . . . . Parts Recycled . | . . . . Recycled Matter . | . . . . Retrieved Matter . | . . . . Retrieved Components 9 | . 9 . . Parts Scanalyzed . | . . . . Part Schematics Acquired . | . . . . Parts Damaged . | . . . . Bothacking | -11 -10 -10 -10 ------------ Run | Yrd Mat Min Sub Used RIF Installer . | . . . . Robots Hacked . | . . . . Non-combat . | . . . . Combat . | . . . . Robot Hacks Applied . | . . . . Relay Couplers Released . | . . . . Fabnet Peak Effective % . | . . . . Robots Rewired . | . . . . Allies Hacked . | . . . . Hacks Repelled . | . . . . Allies | -11 -10 -10 -10 -------- Run | Yrd Mat Min Sub Total Allies 3 | . . 3 . Largest Group 3 | . . 3 3 Highest-Rated Group 40 | . . 40 40 Highest-Rated Ally 16 | . . 16 16 Total Orders . | . . . . Ally Attacks 12 | . . . 12 Total Damage 159 | . . . 159 Kills . | . . . . Allies Corrupted . | . . . . Allies Melted . | . . . . Intel | -11 -10 -10 -10 ------- Run | Yrd Mat Min Sub Active Infowar (turns) 1900 | . . 1269 631 Optics 105 | . . . 105 Sensors 1795 | . . 1269 526 Robot Analysis Total . | . . . . Derelict Logs Recovered 2 | . . 1 1 Drone Launches . | . . . . Drone Recoveries . | . . . . Exploration | -11 -10 -10 -10 ------------- Run | Yrd Mat Min Sub Turns Passed 2786 | 64 441 1269 1012 Spaces Moved 1134 | 46 174 523 391 Core 16 | 14 2 . . Treads 1035 | 4 117 523 391 Legs 83 | 28 55 . . Wheels . | . . . . Hover . | . . . . Flight . | . . . . Fastest Speed 50 | 50 120 240 240 Average Speed 230 | 102 213 240 240 Slowest Speed 320 | 160 320 240 240 Overloaded Moves . | . . . . Propulsion Burnouts . | . . . . Robots Hopped . | . . . . Potential Cave-ins . | . . . . Cave-ins Triggered . | . . . . Exploration Rate (%) 38 | 4 36 99 16 Regions Visited 3 Branch Regions 2 Pre-discovered Areas 2 | . . 1 1 Known Exits Taken . | . . . . Unknown Exits Taken 3 | 1 1 1 . Scrap Searched 1 | . . 1 . Spaces Dug 30 | . . . 30 Terrain Destroyed 259 | . 87 24 148 Melee . | . . . . Projectile . | . . . . AOE 259 | . 87 24 148 Terrain Rammed . | . . . . Walls Destroyed . | . . . . Machines Disabled . | . . . . Actions | -11 -10 -10 -10 --------- Run | Yrd Mat Min Sub Total 1264 | 62 223 536 443 Wait 26 | . . 6 20 Move 1131 | 45 173 522 391 Hop . | . . . . Pick Up 40 | 9 15 6 10 Fast Attach 4 | 3 1 . . Attach 13 | 4 3 1 5 Detach 1 | 1 . . . Swap 4 | . 4 . . Drop 16 | . 12 . 4 Fire 29 | . 15 1 13 Melee . | . . . . Ram . | . . . . Kick . | . . . . Crush . | . . . . Escape Stasis . | . . . . Rewire . | . . . . Trap . | . . . . Miscellaneous . | . . . . Route ------- -11/Scrapyard -10/Materials (discovered 4 exits: *Mat x3 / [*Min]) -10/Mines (discovered 3 exits: *Mat x2 / [*Sub]) -10/Subcaves (discovered 1 exit: [*Mat]) History --------- Turn | Location | Event 29 | -11/Scrapyard | Discovered new exit (range 16) 65 | -11/Scrapyard | Entered Materials 91 | -10/Materials | Identified exit to Materials 307 | -10/Materials | Build established: Mutant 417 | -10/Materials | Discovered new exit (range 11) 506 | -10/Materials | Entered Mines 513 | -10/Mines | Received a Rocket Launcher from a helpful Derelict 1087 | -10/Mines | Assisted by bots powering up and referring to "LRC-V3" 1168 | -10/Mines | Discovered exit to Materials (range 13) 1726 | -10/Mines | Discovered exit to Materials (range 10) 1727 | -10/Mines | Learned location of Storage (-7) 1756 | -10/Mines | Discovered new exit (range 6) 1775 | -10/Mines | Entered Subcaves 1775 | -10/Subcaves | Accompanied by 3 allies 1776 | -10/Subcaves | Approached by a straggling Scientist 2011 | -10/Subcaves | Discovered new exit (range 13) 2081 | -10/Subcaves | A swath of the cavern ceiling suddenly collapsed 2108 | -10/Subcaves | Ambushed by swarm of Subdwellers 2153 | -10/Subcaves | Core integrity fell below 50% 2181 | -10/Subcaves | Lost 6 allies 2183 | -10/Subcaves | Lost 3 parts (1p1n1w) 2390 | -10/Subcaves | Learned location of Zion (-7) 2390 | -10/Subcaves | Met a Zionite searching for "candidates" 2685 | -10/Subcaves | A Subdweller sparked back to life 2685 | -10/Subcaves | A Subdweller sparked back to life 2685 | -10/Subcaves | A Subdweller sparked back to life 2686 | -10/Subcaves | Core integrity fell below 20% 2686 | -10/Subcaves | Ambushed by Subdweller buried in earth 2787 | -10/Subcaves | Destroyed self with Mini Grenade Launcher Last Messages --------------- Subatomizers dissect the Broken Sub. Optics, destroying it. Acquired Scrap Shield Fragment. Dropped Scrap Shield Fragment. AT-7VM(R) creaks and sparks as it begins to move. HU-GWE(R) creaks and sparks as it begins to move. HZ-YNO(R) creaks and sparks as it begins to move. HZ-YNO(R) destroyed. [Achievement: Do Not Disturb] G6-XHT(R): "THANKSYOU!" G6-XHT(R) destroyed. HU-GWE(R) destroyed. AT-7VM(R) destroyed. The unstable cave ceiling collapses. Acquired 18 matter. Subatomizers dissect the Sub. Optics. The unstable cave ceiling collapses. Map ----- +----------------------------------------------------+ | ????????????# # # #???????????????? | | ????????????# ## #???????????????? | | ????????????## ## #???????????????? | | ?????????????## ##???????????????? | | ??????????????# #???????????? | | ??????????????# ## ##### #???????????? | | ??????????????# ##? #??????#???????????? | | ??????????????# ##?# #??????????????????? | | ??????????????# #?? #??????????????????? | | ??????????????## ##?? ###????????????????? | | ???????????????## #### #????????????????? | | ????????????????# #???????????????????? | | ????????????????# ####???????????????????? | | ????????????????# ##??????????????????????? | | ????????????????# #??????????????????????? | | ???????????????## ##??????????????????????? | | ???????????????# ##??????????????????????? | | ???????????????# ##?????????????????????? | | ??????????????## ##????????????????????? | | ??????????????# ##???????????????????? | | ??????????????## #???????????????????? | | ???????????????## #???????????????????? | | ????????????????### ##???????????????????? | | ??????????????????# #???????????????????? | | ?????????????????### ##???????????????????? | | ???????????????###@ #???????????????????? | | ???????????????# ##???????????????????? | | ??????????????# #????????????????????? | | ??????????????## ##????????????????????? | | ???????????????# #?????????????????????? | | ???????????????# #?????????????????????? | | ??????????????##"""##?????????????????????? | | ??????????????# " ##????????????????????? | | ??????????????# "####?????????????????? | | ??????????????## ##????????????????? | | ???????????????## #????????????????? | | ????????????????## [ ##????????????????? | | ?????????????????## "###?????????????????? | | ??????????????????# "#???????????????????? | | ??????????????????" ##???????????????????? | | ?????????????????#""##????????????????????? | | ?????????????????? #?????????????????????? | | ?????????????????? "??????????????????????? | | ??????????????????????????????????????????? | | ??????????????????????????????????????????? | | ??????????????????????????????????????????? | | ??????????????????????????????????????????? | | ??????????????????????????????????????????? | | ??????????????????????????????????????????? | | ??????????????????????????????????????????? | +----------------------------------------------------+ Best States ------------- Heat Dissipation 25 Energy Generation 14 Energy Capacity 250 Matter Stores 300 Matter Capacity 300 Sight Range 21 Robot Scan Range 14 Terrain Scan Density 10 Armor Coverage 225 Evasion (%) 55 Targeting Accuracy 5 Recoil Reduction 2 Item Schematics ----------------- None Robot Schematics ------------------ None Fabricated ------------ Nothing Repaired ---------- Nothing Studied --------- None Alien Tech Used ----------------- None Achievements -------------- Backstab Do Not Disturb Remodeling Challenges ------------ None Game ------ Seed AngularTeslaChargecaster Manual? 0 Play Time 00:27:53 Cumulative 4.4 hours Start 2026.01.07 @ 18:53:44 End 2026.01.07 @ 22:06:04 Sessions 5 Manual Loads 0 Difficulty Rogue Special Mode None Game No. 5 Rogue 5 Adventurer 0 Explorer 0 Win Type - Total 0 Types 0/0/0/0/0/0/0/0/0/0 Lore% 1 Gallery% 7 Achievement% 9 Wizard Run 0 Options --------- Layout 1 ASCII 1 Keyboard 0 Movement Mouse Keybinds 0 Fullscreen 1 Font 48/Terminus++ Map View 50x35 Zoom Use 0% Tactical HUD 0 Map Filters NONE Filters NONE Steam 1 RUN: 462f90bb-d810-4b84-8da3-6a231931ef99